Cogmind - Beta 14 @@@ ROGUE MODE // 2024.09.06 @ 16:19:10 Player: Lunace Result: Destroyed by S-10 Pest with Light Assault Rifle Performance ------------- Evolutions (0) 0 Regions Visited (2) 400 Robots Destroyed (33) 165 Value Destroyed (669) 669 Prototype IDs (2) 40 Alien Tech Used (0) 0 Bonus (0) 0 TOTAL SCORE: 1274 Bonus ------- None Cogmind --------- Core Integrity 0/250 Matter 288/300 Energy 170/170 System Corruption 0% Temperature Cool (0) Movement Treading (160) Location -10/Subcaves Parts ------- > --- POWER (1) -------- Makeshift Power Source > --- PROPULSION (2) --- Light Treads Spiked Treads > --- UTILITY (2) ------ Scrap Shield > --- WEAPON (2) ------- Subdweller Machine Gun Subdweller Machine Gun > --- INVENTORY (5) ---- Large Storage Unit Battle Rifle Subdweller Machine Gun Multitool Scrap Shield Fragment (48) Peak State ------------ > --- POWER ------------ Makeshift Power Source > --- PROPULSION ------- Light Treads Spiked Treads > --- UTILITY ---------- Scrap Shield > --- WEAPON ----------- Subdweller Laser Subdweller Machine Gun > --- INVENTORY -------- Large Storage Unit Battle Rifle Subdweller Machine Gun Multitool Scrap Shield Fragment [Rating: 15] Favorites ----------- Power Ion Engine Engine Ion Engine Propulsion Light Treads Treads Light Treads Utility Scrap Shield Device Seismic Detector Storage Large Storage Unit Protection Scrap Shield Weapon Subdweller Laser Energy Gun Subdweller Laser Energy Cannon Subdweller Beam Cannon Ballistic Gun Assault Rifle Launcher Grenade Launcher Special Weapon Mining Laser Build | -11 -10 -10 ------- Run | Yrd Mat Sub Slots Evolved . | . . . Power . | . . . Propulsion . | . . . Utility . | . . . Weapon . | . . . Parts Attached 31 | 7 8 16 Power 4 | 1 . 3 Engine 4 | 1 . 3 Core . | . . . Reactor . | . . . Propulsion 8 | 2 2 4 Treads 8 | 2 2 4 Leg . | . . . Wheel . | . . . Hover . | . . . Flight . | . . . Utility 5 | 2 1 2 Device 2 | 1 . 1 Storage 2 | 1 1 . Processor . | . . . Hackware . | . . . Protection 1 | . . 1 Artifact . | . . . Weapon 14 | 2 5 7 Energy Gun 3 | 1 . 2 Energy Cannon 1 | . . 1 Ballistic Gun 7 | 1 2 4 Ballistic Cannon . | . . . Launcher 2 | . 2 . Special Weapon 1 | . 1 . Impact Weapon . | . . . Slashing Weapon . | . . . Piercing Weapon . | . . . Special Melee Weapon . | . . . Unidentified Prototypes . | . . . Parts Lost 2 | . 1 1 Power 1 | . . 1 Propulsion 1 | . 1 . Utility . | . . . Weapon . | . . . Highest Loss Streak 1 | . 1 1 To Critical Strikes . | . . . Average Slot Usage (%) 90 | . 99 86 Engine 13 | . 14 13 Treads 27 | . 27 28 Device 5 | . 14 1 Storage 5 | . 14 1 Protection 8 | . . 12 Energy Gun 18 | . 14 20 Ballistic Gun 8 | . 13 6 Peak Build Rating 15 | 7 8 15 Average Rating 10 | 5 6 12 On Entrance 5 | . 7 8 Naked Turns . | . . . Heaviest Build 33 | 15 31 33 Greatest Support 40 | 40 40 40 Greatest Overweight (x) 1 | . 1 . Average Overweight (x) . | . . . Largest Inventory Capacity 15 | 8 15 15 Average Capacity 7 | 7 12 5 Most Carried 10 | 3 10 10 Average Carried 5 | 1 6 5 Final Capacity 15 | 8 15 5 Final Carried 10 | 3 10 5 Class Distribution -------------------- 61% | Subdweller-Mutant 38% | Mutant Dominant Class ---------------- Mutant | -10/Materials Subdweller-Mutant | -10/Subcaves Resources | -11 -10 -10 ----------- Run | Yrd Mat Sub Matter Collected 650 | 257 188 205 Remotely . | . . . Salvage Created 838 | 26 308 504 Parts 85 | 4 42 39 Haulers Intercepted . | . . . Recyclers Shooed . | . . . Parts Field Recycled . | . . . Retrieved Matter . | . . . Parts Self-Destructed 13 | . . 13 Prevented . | . . . Kills | -11 -10 -10 ------- Run | Yrd Mat Sub Combat Hostiles Destroyed 24 | . 12 12 Guns 18 | . 6 12 AOE 6 | . 6 . Classes Destroyed 8 | 1 4 3 Builder 5 | . 5 . Tunneler 1 | 1 . . Recycler 1 | . 1 . Watcher 2 | . 2 . Swarmer 13 | . 12 1 Grunt 1 | . . 1 Sentry 1 | . . 1 Subdweller 9 | . . 9 Best Kill Streak 5 | 1 5 3 Combat Bots Only 3 | . 3 3 Max Kills in Single Turn 3 | 1 3 1 Gunslinging . | . . . Exploded 3 | . 3 . Melee . | . . . Uniques/NPCs Destroyed . | . . . Combat | -11 -10 -10 -------- Run | Yrd Mat Sub Hostile Shots Fired 95 | . 31 64 Missed 20 | . 7 13 Damage Taken 1319 | . 335 984 Core 254 | . 49 205 Absorbed by Shields . | . . . Core Remaining (%) 100 | 100 . . Volleys Fired 82 | 1 27 54 Largest 2 | 2 2 2 Hottest 120 | 70 100 120 Shots Fired 138 | 2 46 90 Gun 126 | 2 38 86 Cannon 4 | . . 4 Launcher 4 | . 4 . Special 4 | . 4 . Kinetic 46 | 1 19 26 Thermal 88 | 1 23 64 Explosive 4 | . 4 . Electromagnetic . | . . . Robot Hit Streak 19 | 1 3 19 Robot Miss Streak 2 | . 2 2 Penetration Max . | . . . Secondary Targets 1 | . 1 . Max Gunslinging Chain 1 | . 1 . Shots Hit Robots 78 | 1 21 56 Core Hits 45 | 1 22 22 Critical Kills . | . . . Critical Parts Destroyed . | . . . Critical Strikes 1 | . 1 . Burn 1 | . 1 . Melee Attacks . | . . . Impact . | . . . Slashing . | . . . Piercing . | . . . Sneak Attacks . | . . . Combat Hostiles . | . . . Follow-up Attacks . | . . . Damage Inflicted 1683 | 12 631 1040 Guns 1294 | 12 242 1040 Cannons . | . . . Explosions 341 | . 341 . Melee . | . . . Ramming . | . . . Kinetic 415 | . 83 332 Thermal 927 | 12 207 708 Explosive 251 | . 251 . Electromagnetic 90 | . 90 . Impact . | . . . Slashing . | . . . Piercing . | . . . Highest Corruption . | . . . Average Corruption . | . . . Corruption Purged . | . . . Corruption Blocked . | . . . Overload Shots . | . . . Overflow Damage 2 | . 2 . Projectiles . | . . . Explosions 2 | . 2 . Melee . | . . . Knockbacks . | . . . Impact . | . . . Kinetic . | . . . Secondary . | . . . Self-Inflicted Damage 137 | . 137 . Shots 4 | . 4 . Rammed . | . . . Targets Rammed . | . . . Kicked . | . . . Crushed . | . . . Highest Temperature 60 | 9 60 12 Average Temperature 15 | 6 18 7 Received Heat Transfer 168 | . . 168 Siege Activations . | . . . Robots Corrupted . | . . . Combat Hostiles . | . . . Parts Fried 1 | . 1 . Impact Corruptions . | . . . Robots Melted . | . . . Combat Hostiles . | . . . Parts Melted 3 | . 3 . Heat Transferred 1738 | 37 655 1046 Parts Sabotaged . | . . . Parts Stolen . | . . . Parts Stripped . | . . . Power Chain Reactions 1 | . 1 . Alert | -11 -10 -10 ------- Run | Yrd Mat Sub Peak Influence 284 | 5 284 . Initial 3 | . 3 . Average 119 | 2 135 . Maximum Alert Level 1 | . 1 . Low Security (%) 63 | 100 58 . Level 1 36 | . 41 . Level 2 . | . . . Level 3 . | . . . Level 4 . | . . . Level 5 . | . . . High Security . | . . . Max Security . | . . . Squads Dispatched 1 | . 1 . Investigation . | . . . Extermination . | . . . Reinforcement 1 | . 1 . Assault . | . . . Garrison . | . . . Intercept . | . . . Searches Triggered . | . . . Construction Impeded . | . . . Haulers Reinforced . | . . . Active Scanning Responses . | . . . Cargo Convoy Interrupts . | . . . Stealth | -11 -10 -10 --------- Run | Yrd Mat Sub Distress Signals . | . . . Communications Jammed . | . . . Distress Signals . | . . . Times Spotted 33 | . 16 17 Peak Tracking Total 6 | . 3 6 Tactical Retreats 1 | . . 1 Traps | -11 -10 -10 ------- Run | Yrd Mat Sub Traps Triggered 1 | . . 1 Indirectly . | . . . Trap Hack Attempts . | . . . Triggered . | . . . Disarmed . | . . . Reprogrammed . | . . . Reused . | . . . Traps Extracted . | . . . Installed . | . . . Triggered . | . . . Machines | -11 -10 -10 ---------- Run | Yrd Mat Sub Machines Disabled 3 | . 3 . Max in Single Turn 2 | . 2 . Machines Repaired . | . . . Machines Dismantled . | . . . Machines Sabotaged . | . . . Overloaded Fab Kills . | . . . Hacking | -11 -10 -10 --------- Run | Yrd Mat Sub Machines Accessed 8 | . 8 . Terminals 6 | . 6 . Fabricators . | . . . Repair Stations . | . . . Recycling Units 2 | . 2 . Scanalyzers . | . . . Garrison Access . | . . . Total Hacks 29 | . 29 . Successful 12 | . 12 . Failed 17 | . 17 . Catastrophic 1 | . 1 . Database Lockouts . | . . . Manual 22 | . 22 . Terminals 22 | . 22 . Fabricators . | . . . Repair Stations . | . . . Recycling Units 7 | . 7 . Scanalyzers . | . . . Garrison Access . | . . . Terminal Hacks 1 | . 1 . Prototype ID Bank 1 | . 1 . Fabricator Hacks . | . . . Repair Station Hacks . | . . . Recycling Unit Hacks 2 | . 2 . Retrieve Components 2 | . 2 . Scanalyzer . | . . . Garrison Access Hacks . | . . . Unauthorized Hacks 9 | . 9 . Terminals 8 | . 8 . Botnet 2 | . 2 . Operators 1 | . 1 . Skim 5 | . 5 . Fabricators . | . . . Repair Stations . | . . . Recycling Units 1 | . 1 . Reject 1 | . 1 . Scanalyzers . | . . . Garrison Access . | . . . Data Cores Recovered . | . . . Used . | . . . Hacking Detections 8 | . 8 . Full Trace Events 1 | . 1 . Feedback Events . | . . . Feedback Blocked . | . . . Robot Schematics Acquired . | . . . Robots Built . | . . . Authchips . | . . . Time . | . . . Total Robot Build Rating . | . . . Part Schematics Acquired . | . . . Parts Built . | . . . Authchips . | . . . Time . | . . . Total Part Build Rating . | . . . Parts Repaired . | . . . Time . | . . . Parts Recycled . | . . . Recycled Matter . | . . . Retrieved Matter . | . . . Retrieved Components 7 | . 7 . Parts Scanalyzed . | . . . Part Schematics Acquired . | . . . Parts Damaged . | . . . Bothacking | -11 -10 -10 ------------ Run | Yrd Mat Sub Used RIF Installer . | . . . Robots Hacked . | . . . Non-combat . | . . . Combat . | . . . Robot Hacks Applied . | . . . Relay Couplers Released . | . . . Fabnet Peak Effective % . | . . . Robots Rewired . | . . . Allies Hacked . | . . . Hacks Repelled . | . . . Allies | -11 -10 -10 -------- Run | Yrd Mat Sub Total Allies . | . . . Largest Group . | . . . Highest-Rated Group . | . . . Highest-Rated Ally . | . . . Total Orders . | . . . Ally Attacks . | . . . Total Damage . | . . . Kills . | . . . Allies Corrupted . | . . . Allies Melted . | . . . Intel | -11 -10 -10 ------- Run | Yrd Mat Sub Robot Analysis Total . | . . . Derelict Logs Recovered 2 | . . 2 Drone Launches . | . . . Drone Recoveries . | . . . Exploration | -11 -10 -10 ------------- Run | Yrd Mat Sub Turns Passed 2885 | 115 826 1944 Spaces Moved 1515 | 56 374 1085 Core 3 | 3 . . Treads 1512 | 53 374 1085 Legs . | . . . Wheels . | . . . Hover . | . . . Flight . | . . . Fastest Speed 50 | 50 160 160 Average Speed 160 | 154 162 160 Slowest Speed 240 | 160 240 160 Overloaded Moves . | . . . Propulsion Burnouts . | . . . Robots Hopped . | . . . Cave-ins Triggered . | . . . Exploration Rate (%) 49 | 5 70 73 Regions Visited 2 Branch Regions 1 Pre-discovered Areas . | . . . Known Exits Taken . | . . . Unknown Exits Taken 2 | 1 1 . Scrap Searched 9 | . . 9 Spaces Dug . | . . . Terrain Destroyed 24 | . 24 . Melee . | . . . Projectile . | . . . AOE 24 | . 24 . Terrain Rammed . | . . . Walls Destroyed . | . . . Machines Disabled . | . . . Actions | -11 -10 -10 --------- Run | Yrd Mat Sub Total 1825 | 79 534 1212 Wait 144 | 13 116 15 Move 1513 | 55 373 1085 Hop . | . . . Pick Up 20 | 3 8 9 Fast Attach 15 | 7 1 7 Attach 4 | . . 4 Detach 1 | . . 1 Swap 12 | . 7 5 Drop 26 | . 2 24 Fire 82 | 1 27 54 Melee . | . . . Ram . | . . . Kick . | . . . Crush . | . . . Escape Stasis . | . . . Rewire . | . . . Trap . | . . . Miscellaneous 8 | . . 8 Route ------- -11/Scrapyard -10/Materials (discovered 3 exits: [*Mat] / [*Min] / [*Sub]) -10/Subcaves (discovered 3 exits: [*Mat x2] / [*Rec]) History --------- Turn | Location | Event 30 | -11/Scrapyard | Discovered new exit (range 16) 116 | -11/Scrapyard | Entered Materials 307 | -10/Materials | Build established: Mutant 499 | -10/Materials | Discovered new exit (range 4) 733 | -10/Materials | Discovered new exit (range 16) 921 | -10/Materials | Discovered new exit (range 2) 942 | -10/Materials | Entered Subcaves 1010 | -10/Subcaves | Learned Materials emergency access door positions 1084 | -10/Subcaves | Core integrity fell below 50% 1252 | -10/Subcaves | Visited 4L-MR0's lab 1403 | -10/Subcaves | Build established: Subdweller-Mutant 1542 | -10/Subcaves | A Subdweller sparked back to life 1542 | -10/Subcaves | A Subdweller sparked back to life 1676 | -10/Subcaves | Shifting Twisted Machinery released Scrap Shield 1698 | -10/Subcaves | Shifting Twisted Machinery released Sub. Optics 1780 | -10/Subcaves | Core integrity fell below 20% 1829 | -10/Subcaves | Shifting Twisted Machinery released Sub. Laser 1904 | -10/Subcaves | Shifting Twisted Machinery released Sub. Beam Cannon 2010 | -10/Subcaves | A swath of the cavern ceiling suddenly collapsed 2250 | -10/Subcaves | A swath of the cavern ceiling suddenly collapsed 2327 | -10/Subcaves | Discovered new exit (range 10) 2755 | -10/Subcaves | Shifting Twisted Machinery released Sub. Machine Gun 2789 | -10/Subcaves | Shifting Twisted Machinery released Mak. Leg 2794 | -10/Subcaves | Discovered new exit (range 8) 2867 | -10/Subcaves | Learned Materials stockpile data 2875 | -10/Subcaves | Discovered new exit (range 13) 2886 | -10/Subcaves | Destroyed by S-10 Pest with Light Assault Rifle Last Messages --------------- 02816_ Critical hit (Destroy). 02824_ V5-RCC(R) destroyed. 02827_ Acquired 14 matter. 02831_ Scrap Shield Fragment affixed to Scrap Shield (+47). 02837_ Scrap Shield Fragment affixed to Scrap Shield (+46). 02840_ Acquired Scrap Shield Fragment. 02842_ Dropped Sub. Machine Gun. 02847_ Dropped Sub. Laser. 02848_ Acquired Sub. Machine Gun. 02849_ Acquired 20 matter. 02867_ Acquired derelict log, extracted data. Data stored: Materials stockpile data. 02875_ EXIT=FOUND 02879_ S-10 Pest destroyed. 02884_ Lgt. Ion Engine fries itself beyond repair. 02886_ Lgt. Assault Rifle fries itself beyond repair. Map ----- +----------------------------------------------------+ | ????###""##??????????????#""#??# ## =%![ | | ????#"""###?????????????##""#????# ## | | ????#"###"##???????######"" ##??## #??# | | ???##""#"""####???## #" #?## # # % #??? | | ???#"""""##"# #???# """ ### # #### | | ???#"#"##"### #???# "### % "# | | ???##"####""####### /% * % ### ### | | ????##??##"""" ## % #?# ## | | ?????#####"#"" ## =" ### #?## | | ?????# #""#" ### *"% #?## #?# | | ?????# " # # ##?# =" ##??# #?# | | ?????# ##### ####?# "" ###???? #?### | | ?????# ##### ##???# "" #?????? #???## | | ?????## ## #??? "" ????? #????# | | #####?## %### #?? "" ### #???? ????# | | ###% #? ## ## "" #??###????###???## # | | ## ## # #??????????????## # | | # # #### ????????????### | | #???#??? ??????"""#?## | | # #???????#????? "#?# | | ##### #"""" #???######### "#?## ## | | ????## ## "## ##### ""#??##?## | | ????# ## ## " # <#?????# | | ????## ## ## "" = ""#??????# ## | | ????## ## ##" """ sss###### "#??????# #? | | ????# # #?#" "" ## @# #?????????????## #? | | ????## # ##?#"= ?## #?????????????# ## | | ????## """"" ###" #### #?????????????# # | | ????# # " ""##" *# # #?????????????## # | | ????###" """ "" [ |[ ### #??????????????## ## | | ??????#" """"" !%! ## ##???????????# # | | ??????#""" #" "" ## #??????????## | | ??????# # "" ### < #?????????## | | ??????# ### " ##""#?##### ##????????## | | ??????# ####" ###"#?????########?????????# | | ??????#####""" #####??????????????????????# ##### | | ???????## " ##????????????????????????####???? | | ????#### ["" ##??????????????????????????????? | | ????# " #??????????????????????????????? | | ????## ##??????????????????????????????? | | ?????## ##???????????????????????????????? | | ??????# #####????????????????????????????????? | | ????? ##????????????????????????????????????? | | ???# ###?????????????????????????????????????? | | ???# " ????????????????????????????????????????? | | ???#"""" ????????????????????????????????????????? | | ???##""" ????????????????????????????????????????? | | ????#### ????????????????????????????????????????? | | ???????# ????????????????????????????????????????? | | ??????? ????????????????????????????????????????## | +----------------------------------------------------+ Best States ------------- Heat Dissipation 25 Energy Generation 15 Energy Capacity 250 Matter Stores 300 Matter Capacity 300 Sight Range 16 Terrain Scan Density 10 Armor Coverage 800 Evasion (%) 40 Recoil Reduction 2 Item Schematics ----------------- None Robot Schematics ------------------ None Fabricated ------------ Nothing Alien Tech Used ----------------- None Achievements -------------- None Challenges ------------ None Game ------ Seed TachyonMatterStabilizer Manual? 0 Play Time 00:19:12 Cumulative 332.5 hours Start 2024.09.06 @ 15:57:54 End 2024.09.06 @ 16:19:10 Sessions 1 Manual Loads 0 Difficulty Rogue Special Mode None Game No. 335 Rogue 330 Adventurer 5 Explorer 0 Win Type - Total 5 Types 4/0/0/1/0/0/0/0/0 Lore% 76 Gallery% 82 Achievement% 67 Wizard Run 0 Options --------- Layout 1 ASCII 0 Keyboard 0 Movement Mouse Keybinds 0 Fullscreen 1 Font 24/Terminus Map View 50x35 Zoom Use 0% Tactical HUD 1 Map Filters NONE Filters NONE Steam 1 RUN: f08e49d3-617b-4a75-b5e5-72997c2507f6